bitfinex/quotes_BTCUSD_20241027
["timestamp","ask_amount","ask_price","bid_price","bid_amount"]
[1730042778898,1.91686881,67750.0,67749.0,0.00167]
[1730042779111,1.87264427,67750.0,67749.0,0.00167]
[1730042779549,1.78454893,67750.0,67749.0,0.00167]
[1730042780483,1.78548084,67750.0,67749.0,0.00167]
[1730042780715,1.78454896,67750.0,67749.0,0.00167]
[1730042782883,2.55282296,67750.0,67749.0,0.00167]
[1730042783094,2.53641796,67750.0,67749.0,0.00167]
[1730042783522,2.49312727,67750.0,67749.0,0.00167]
[1730042783744,2.5806412,67750.0,67749.0,0.00167]
[1730042784184,2.53642165,67750.0,67749.0,0.00167]
[1730042784413,2.60276249,67750.0,67749.0,0.00167]
[1730042784627,2.53642165,67750.0,67749.0,0.00167]
[1730042793315,0.72554365,67750.0,67749.0,0.00167]
[1730042793830,3.27247165,67750.0,67749.0,0.00167]
[1730042794246,3.25606665,67750.0,67749.0,0.00167]
[1730042796977,3.32241641,67750.0,67749.0,0.00167]
[1730042797579,3.25606665,67750.0,67749.0,0.00167]
[1730042801510,3.58757046,67750.0,67749.0,0.00167]
[1730042802835,3.59013237,67750.0,67749.0,0.00167]
[1730042803316,3.43962856,67750.0,67749.0,0.00167]
[1730042804687,5.28904056,67750.0,67749.0,0.00167]
[1730042806890,5.42186111,67750.0,67749.0,0.00167]
[1730042807142,5.28904056,67750.0,67749.0,0.00167]
[1730042809647,5.24088669,67750.0,67749.0,0.00167]
[1730042810090,5.3913905,67750.0,67749.0,0.00167]
[1730042810318,5.24088669,67750.0,67749.0,0.00167]
[1730042814138,5.23832478,67750.0,67749.0,0.00167]
[1730042815075,4.82377065,67750.0,67749.0,0.00167]
[1730042818202,4.91249065,67750.0,67749.0,0.00167]
[1730042818413,4.82377065,67750.0,67749.0,0.00167]
[1730042818926,5.13021678,67750.0,67749.0,0.00167]
[1730042819340,4.99737065,67750.0,67749.0,0.00167]
[1730042822456,5.08612065,67750.0,67749.0,0.00167]
[1730042822693,5.23540762,67750.0,67749.0,0.00167]
[1730042823828,5.25853136,67750.0,67749.0,0.00167]
[1730042824494,5.40903517,67750.0,67749.0,0.00167]
[1730042825640,5.2597482,67750.0,67749.0,0.00167]
[1730042826078,5.10924439,67750.0,67749.0,0.00167]
[1730042826593,5.25863077,67750.0,67749.0,0.00167]
[1730042827689,5.10924439,67750.0,67749.0,0.00167]
[1730042828173,5.25863077,67750.0,67749.0,0.00167]
[1730042828397,5.10924439,67750.0,67749.0,0.00167]
[1730042829549,5.2597482,67750.0,67749.0,0.00167]
[1730042830711,5.10924439,67750.0,67749.0,0.00167]
[1730042831436,5.25863667,67750.0,67749.0,0.00167]
[1730042831891,5.10924439,67750.0,67749.0,0.00167]
[1730042832379,5.25863667,67750.0,67749.0,0.00167]
[1730042832625,5.10924439,67750.0,67749.0,1e-06]
[1730042832837,5.2518685,67750.0,67749.0,1e-06]
[1730042835611,5.5335765,67750.0,67749.0,1e-06]
[1730042837341,5.53613555,67750.0,67749.0,1e-06]
[1730042837825,5.5335765,67750.0,67749.0,1e-06]
[1730042838509,5.92532497,67750.0,67749.0,1e-06]
[1730042840872,5.92788352,67750.0,67749.0,1e-06]
[1730042844383,0.273608,67747.0,67746.0,0.00167]
[1730042844597,4.93609119,67747.0,67746.0,0.00167]
[1730042844814,5.14730561,67747.0,67746.0,0.00167]
[1730042845667,5.29670778,67747.0,67746.0,0.00167]
[1730042845892,5.14730561,67747.0,67746.0,0.00167]
[1730042846112,5.29670778,67747.0,67746.0,0.00167]
[1730042846549,5.33968392,67747.0,67746.0,0.00167]
[1730042847716,5.19028175,67747.0,67746.0,0.00167]
[1730042848796,0.61236,67746.0,67745.0,8e-08]
[1730042849013,5.39454595,67746.0,67745.0,8e-08]
[1730042849219,1.05914426,67746.0,67745.0,8e-08]
[1730042854495,1.99739273,67746.0,67745.0,8e-08]
[1730042854712,2.03965273,67746.0,67745.0,8e-08]
[1730042857072,2.03349845,67746.0,67745.0,8e-08]
[1730042859668,1.76699845,67746.0,67745.0,8e-08]
[1730042860305,1.76699845,67746.0,67745.0,0.00082208]
[1730042860731,6.14693345,67746.0,67745.0,0.00082208]
[1730042861397,6.52993345,67746.0,67745.0,8e-08]
[1730042861615,2.14999845,67746.0,67745.0,8e-08]
[1730042862678,2.10546514,67746.0,67745.0,8e-08]
[1730042864688,2.37452385,67746.0,67745.0,8e-08]
[1730042865111,2.37281299,67746.0,67745.0,8e-08]
[1730042872172,2.37445699,67746.0,67745.0,8e-08]
[1730042873062,2.17386937,67746.0,67745.0,8e-08]
[1730042873756,2.32437318,67746.0,67745.0,8e-08]
[1730042875103,2.17386937,67746.0,67745.0,8e-08]
[1730042875322,2.3687609,67746.0,67745.0,8e-08]
[1730042879954,2.3687609,67746.0,67741.0,0.02957]
[1730042880181,2.3687609,67746.0,67738.0,0.12339]
[1730042880182,0.612375,67739.0,67738.0,0.12339]
[1730042880419,5.40045728,67739.0,67738.0,0.12339]
[1730042880625,5.53328189,67739.0,67738.0,0.12339]
[1730042880842,5.54868935,67739.0,67738.0,0.12339]
[1730042881291,5.41586474,67739.0,67738.0,0.12339]
[1730042882153,5.41586474,67739.0,67738.0,0.20629]
[1730042882412,4.94358374,67739.0,67738.0,0.20629]
[1730042883263,4.96095769,67739.0,67738.0,0.20629]
[1730042883923,4.98408383,67739.0,67738.0,0.20629]
[1730042884647,4.96670988,67739.0,67738.0,0.20629]
[1730042884870,4.96926802,67739.0,67738.0,0.20629]
[1730042885755,4.96670988,67739.0,67738.0,0.20629]
[1730042891948,5.00329126,67739.0,67738.0,0.20629]
[1730042894360,4.96670988,67739.0,67738.0,0.20629]
[1730042895041,4.96670988,67739.0,67738.0,0.207112]
[1730042897606,5.05545988,67739.0,67738.0,0.207112]
[1730042898719,5.43899088,67739.0,67738.0,0.207112]
[1730042900331,5.43899088,67739.0,67738.0,0.124212]
[1730042900540,5.58949469,67739.0,67738.0,0.124212]
[1730042900989,5.58949469,67739.0,67738.0,0.030412]
[1730042901219,5.58949469,67739.0,67737.0,3.3e-07]
[1730042901220,0.362377,67738.0,67737.0,3.3e-07]
[1730042901446,5.06906291,67738.0,67737.0,3.3e-07]
[1730042901696,0.68912791,67738.0,67737.0,3.3e-07]
[1730042902603,0.55617519,67738.0,67737.0,3.3e-07]
[1730042906245,0.55617519,67738.0,67737.0,0.02959033]
[1730042906459,0.362386,67734.0,67732.0,0.00167]
[1730042906696,5.26612818,67734.0,67732.0,0.00167]
[1730042907391,5.26869395,67734.0,67732.0,0.00167]
[1730042909224,5.13581813,67734.0,67732.0,0.00167]
[1730042909436,0.75588313,67734.0,67732.0,0.00167]
[1730042909662,5.13581813,67734.0,67732.0,0.00167]
[1730042912692,5.26864079,67734.0,67732.0,0.00167]
[1730042912922,5.4191446,67734.0,67732.0,0.00167]
[1730042913590,5.4250556,67734.0,67732.0,0.00167]
[1730042914751,5.41976705,67734.0,67732.0,0.00167]
[1730042914989,5.41975375,67734.0,67732.0,0.00167]
[1730042915200,5.26924994,67734.0,67732.0,0.00167]
[1730042916329,5.13644058,67734.0,67732.0,0.00167]
[1730042922757,5.133847,67734.0,67732.0,0.00167]
[1730042924805,5.15134234,67734.0,67732.0,0.00167]
[1730042930786,4.9620913,67734.0,67732.0,0.00167]
[1730042931536,0.5821563,67734.0,67732.0,0.00167]
[1730042931743,4.9620913,67734.0,67732.0,0.00167]
[1730042932074,5.11259511,67734.0,67732.0,0.00167]
[1730042939718,5.11259511,67734.0,67733.0,1e-06]
[1730042940219,4.8114553,67734.0,67726.0,0.17807]
[1730042940469,0.52366,67723.0,67722.0,0.04492982]
[1730042940708,0.67416381,67723.0,67722.0,0.12312982]
[1730042940945,0.67416381,67723.0,67722.0,0.23299596]
[1730042940946,0.82820245,67723.0,67722.0,0.23299596]
[1730042941161,4.19248695,67723.0,67722.0,0.22122982]
[1730042941363,4.52548495,67723.0,67722.0,0.22122982]
[1730042941638,4.50907995,67723.0,67722.0,0.22122982]
[1730042942555,3.24587102,67723.0,67722.0,0.22122982]
[1730042942770,2.95436802,67723.0,67722.0,0.22122982]
[1730042942995,1.75397502,67723.0,67722.0,0.22122982]
[1730042943177,1.75397502,67723.0,67722.0,0.22322982]
[1730042943421,1.64322295,67723.0,67722.0,0.22322982]
[1730042943639,1.6606039,67723.0,67722.0,0.22122982]
[1730042944283,1.6580386,67723.0,67722.0,0.22122982]
[1730042947001,1.83957661,67723.0,67722.0,0.22122982]
[1730042951005,1.89867961,67723.0,67722.0,0.22122982]
[1730042951479,2.03468304,67723.0,67722.0,0.22122982]
[1730042951718,2.05781374,67723.0,67722.0,0.22122982]
[1730042951926,1.92481031,67723.0,67722.0,0.22122982]
[1730042952154,2.05781077,67723.0,67722.0,0.22122982]
[1730042953079,2.05781077,67723.0,67722.0,0.22205282]
[1730042953781,1.92481031,67723.0,67722.0,0.22205282]
[1730042954016,1.92181031,67723.0,67722.0,0.22205282]
[1730042954240,1.89867961,67723.0,67722.0,0.22205282]
[1730042955099,1.89616277,67723.0,67722.0,0.22205282]
[1730042957633,0.98537077,67723.0,67722.0,0.22205282]
[1730042958085,4.20363677,67723.0,67722.0,0.22205282]
[1730042958318,4.20348877,67723.0,67722.0,0.22205282]
[1730042958536,3.85108977,67723.0,67722.0,0.22205282]
[1730042959221,3.30913377,67723.0,67722.0,0.22205282]
[1730042963218,3.30906433,67723.0,67722.0,0.22205282]
[1730042968469,0.98530133,67723.0,67722.0,0.22205282]
[1730042968895,3.88925033,67723.0,67722.0,0.22205282]
[1730042971378,3.76127633,67723.0,67722.0,0.22205282]
[1730042972070,3.58145733,67723.0,67722.0,0.22205282]
[1730042973983,3.43924433,67723.0,67722.0,0.22205282]
[1730042974419,3.14877133,67723.0,67722.0,0.22205282]
[1730042974622,1.01678565,67723.0,67722.0,0.23105282]
[1730042975591,0.90594833,67723.0,67722.0,0.23105282]
[1730042975814,0.82469733,67723.0,67722.0,0.22905282]
[1730042976028,0.82469733,67723.0,67722.0,0.24086881]
[1730042976644,0.91335313,67723.0,67722.0,0.24086881]
[1730042977106,0.84469213,67723.0,67722.0,0.24086881]
[1730042977770,0.82928467,67723.0,67722.0,0.24586881]
[1730042977981,0.72324792,67723.0,67722.0,0.24586881]
[1730042978201,0.68689709,67723.0,67722.0,0.24586881]
[1730042978441,0.68689709,67723.0,67722.0,0.23405282]
[1730042978671,0.62040992,67723.0,67722.0,0.23605282]
[1730042979113,0.62040992,67723.0,67722.0,0.23405282]
[1730042979323,0.62040992,67723.0,67722.0,0.23605282]
[1730042980522,0.66472013,67723.0,67722.0,0.23605282]
[1730042980970,0.66472013,67723.0,67722.0,0.24783942]
[1730042981192,0.66472013,67723.0,67722.0,0.23605282]
[1730042982484,0.66472013,67723.0,67722.0,0.23405282]
[1730042982703,0.66472013,67723.0,67722.0,0.23605282]
[1730042983147,0.57711554,67723.0,67722.0,0.23605282]
[1730042983622,0.57711554,67723.0,67722.0,0.23405282]
[1730042984316,0.57711554,67723.0,67722.0,0.23605282]
[1730042988438,0.47711554,67723.0,67722.0,0.23605282]
[1730042988651,0.47711554,67723.0,67722.0,0.23405282]
[1730042988877,0.47711554,67723.0,67722.0,0.24780539]
[1730042989523,0.47711554,67723.0,67722.0,0.24580539]
[1730042989736,0.32945554,67723.0,67722.0,0.24580539]
[1730042989952,0.47711554,67723.0,67722.0,0.24580539]
[1730042991063,0.32945554,67723.0,67722.0,0.24780539]
[1730042991321,0.32945554,67723.0,67722.0,0.24580539]
[1730042991752,0.47711554,67723.0,67722.0,0.24580539]
[1730042991978,0.32945554,67723.0,67722.0,0.24580539]
[1730042992203,0.17895173,67723.0,67722.0,0.39546739]
[1730042992681,0.17895173,67723.0,67722.0,0.39346739]
[1730042994991,0.17895173,67723.0,67722.0,0.42305739]
[1730042998321,0.17895173,67723.0,67722.0,0.42505739]
[1730042998986,0.17895173,67723.0,67722.0,0.42305739]
[1730042999402,0.17895173,67723.0,67722.0,0.42805739]
[1730043011381,0.17895173,67723.0,67722.0,0.44205739]
[1730043011616,0.17895173,67723.0,67722.0,0.43805739]
[1730043015564,0.17895173,67723.0,67722.0,0.44267699]
[1730043017139,0.17895173,67723.0,67722.0,0.44467699]
[1730043017356,0.17895173,67723.0,67722.0,0.42830482]
[1730043017594,0.17895173,67723.0,67722.0,0.43994521]
[1730043017805,0.17895173,67723.0,67722.0,0.43794521]
[1730043019489,0.17895173,67723.0,67722.0,0.44256481]
[1730043019930,0.17895173,67723.0,67722.0,0.43994521]
[1730043022934,0.17895173,67723.0,67722.0,0.43994521]
[1730043028756,0.17895173,67723.0,67722.0,0.43794521]
[1730043029224,0.17895173,67723.0,67722.0,0.43994521]
[1730043030140,0.17895173,67723.0,67722.0,0.43794521]
[1730043033670,0.17895173,67723.0,67722.0,0.43494521]
[1730043033887,0.17895173,67723.0,67722.0,0.10298321]
[1730043034136,0.17859665,67723.0,67722.0,0.10298321]
[1730043034781,0.17859665,67723.0,67722.0,0.10238321]
[1730043034990,0.17859665,67723.0,67722.0,0.10228321]
[1730043035217,0.17859665,67723.0,67722.0,0.10218321]
[1730043035420,0.32910046,67723.0,67722.0,0.10198321]
[1730043035701,0.32910046,67723.0,67722.0,0.09898321]
[1730043036311,0.32910046,67723.0,67722.0,0.08734282]
[1730043036312,0.47676046,67723.0,67722.0,0.08734282]
[1730043036546,0.47676046,67723.0,67722.0,0.09894015]
[1730043036765,0.47676046,67723.0,67722.0,0.05775282]
[1730043038157,0.47676046,67723.0,67722.0,0.05575282]
[1730043038854,0.57746046,67723.0,67722.0,0.05775282]
[1730043040006,0.57746046,67723.0,67722.0,0.05575282]
[1730043040225,0.57746046,67723.0,67722.0,0.05775282]
[1730043041112,0.57746046,67723.0,67722.0,0.05575282]
[1730043042422,0.47676046,67723.0,67722.0,0.05575282]
[1730043043286,0.32910046,67723.0,67722.0,0.05775282]
[1730043043756,0.32910046,67723.0,67722.0,0.0693922]
[1730043043968,0.32910046,67723.0,67722.0,0.05775282]
[1730043044423,0.47676046,67723.0,67722.0,0.05575282]
[1730043044881,0.49976046,67723.0,67722.0,0.05575282]
[1730043045119,0.49976046,67723.0,67722.0,0.05775282]
[1730043045566,0.49976046,67723.0,67722.0,0.05575282]
[1730043053778,0.50140446,67723.0,67722.0,0.05575282]
[1730043054828,0.50140446,67723.0,67722.0,0.05775282]
[1730043055096,0.50140446,67723.0,67722.0,0.05575282]
[1730043055312,0.50140446,67723.0,67722.0,0.08534282]
[1730043055536,0.50140446,67723.0,67722.0,0.05575282]
[1730043057520,0.50140446,67723.0,67722.0,0.05775282]
[1730043057976,0.50140446,67723.0,67722.0,0.05575282]
[1730043064215,0.33074446,67723.0,67722.0,0.05575282]
[1730043065086,0.47840446,67723.0,67722.0,0.05575282]
[1730043065939,0.33074446,67723.0,67722.0,0.05575282]
[1730043066151,0.47840446,67723.0,67722.0,0.05575282]
[1730043067172,0.33074446,67723.0,67722.0,0.05575282]
[1730043067613,0.47840446,67723.0,67722.0,0.05575282]
[1730043068131,0.33074446,67723.0,67722.0,0.05575282]
[1730043068365,0.33074446,67723.0,67722.0,0.23870583]
[1730043068615,0.18024065,67723.0,67722.0,0.24275282]
[1730043068846,0.18024065,67723.0,67722.0,0.25445096]
[1730043069070,0.18024065,67723.0,67722.0,0.25245096]
[1730043070381,0.18024065,67723.0,67722.0,0.40011296]
[1730043070594,0.18024065,67723.0,67722.0,0.25245096]
[1730043073035,0.18024065,67723.0,67722.0,0.24745096]
[1730043073477,0.18024065,67723.0,67722.0,0.25245096]
[1730043074832,0.47840446,67723.0,67722.0,0.16485096]
[1730043075268,0.47840446,67723.0,67722.0,0.15315282]
[1730043076645,0.47840446,67723.0,67722.0,0.15515282]
[1730043078036,0.47840446,67723.0,67722.0,0.15315282]
[1730043078241,0.47840446,67723.0,67722.0,0.05575282]
[1730043078694,0.47840446,67723.0,67722.0,0.05775282]
[1730043081407,0.147664,67721.0,67717.0,0.16739282]
[1730043081671,0.15050381,67720.0,67717.0,0.16739282]
[1730043081879,0.29817081,67720.0,67718.0,0.01165808]
[1730043082330,0.29817081,67720.0,67717.0,0.16739282]
[1730043082749,0.29817081,67720.0,67718.0,0.01165808]
[1730043083389,0.15050381,67720.0,67718.0,0.01165808]
[1730043083615,0.147669,67719.0,67718.0,0.01165808]
[1730043083819,0.15050381,67719.0,67718.0,0.01165808]
[1730043084035,0.15050381,67719.0,67717.0,0.16739282]
[1730043084249,0.15050381,67718.0,67717.0,0.16739282]
[1730043084943,0.29817481,67718.0,67717.0,0.16739282]
[1730043085171,0.29817481,67718.0,67717.0,0.0974]
[1730043086729,0.147677,67715.0,67714.0,0.04626506]
[1730043086961,0.29818081,67715.0,67714.0,0.04626506]
[1730043089707,0.40318081,67715.0,67714.0,0.04626506]
[1730043090416,0.39818081,67715.0,67714.0,0.04626506]
[1730043090641,0.40318081,67715.0,67714.0,0.04626506]
[1730043092871,0.42618081,67715.0,67714.0,0.04626506]
[1730043093518,0.50528081,67715.0,67714.0,0.04626506]
[1730043095551,1.3208653,67715.0,67714.0,0.04626506]
[1730043095745,1.38732689,67715.0,67714.0,0.04626506]
[1730043095862,1.40948076,67715.0,67714.0,0.04626506]
[1730043096094,1.3208653,67715.0,67714.0,0.04626506]
[1730043096335,1.38724471,67715.0,67714.0,0.04626506]
[1730043096786,1.3208653,67715.0,67714.0,0.04626506]
[1730043097226,1.36511708,67715.0,67714.0,0.04626506]
[1730043097462,1.32179459,67715.0,67714.0,0.04626506]
[1730043098356,1.27754281,67715.0,67714.0,0.04626506]
[1730043098566,1.32179459,67715.0,67714.0,0.04626506]
[1730043100149,1.32179459,67715.0,67714.0,0.04708706]
[1730043100398,1.38949481,67715.0,67714.0,0.04708706]
[1730043101745,1.39205266,67715.0,67714.0,0.04708706]
[1730043103091,1.43965266,67715.0,67714.0,0.04708706]
[1730043107985,1.17832966,67715.0,67714.0,0.04708706]
[1730043111604,1.86911966,67715.0,67714.0,0.04708706]
[1730043111835,1.86808666,67715.0,67714.0,0.04708706]
[1730043112270,1.83978166,67715.0,67714.0,0.04708706]
[1730043113565,1.88309555,67715.0,67714.0,0.04708706]
[1730043118102,1.78641255,67715.0,67714.0,0.04708706]
[1730043118316,1.76848655,67715.0,67714.0,0.04708706]
[1730043118958,1.55870355,67715.0,67714.0,0.04708706]
[1730043120306,1.17009655,67715.0,67714.0,0.04708706]
[1730043120519,1.13187655,67715.0,67714.0,0.04708706]
[1730043121266,1.11547155,67715.0,67714.0,0.04708706]
[1730043121497,1.03108055,67715.0,67714.0,0.04708706]
[1730043125598,0.57075255,67715.0,67714.0,0.04708706]
[1730043125800,0.37547555,67715.0,67714.0,0.21898706]
[1730043126149,0.37728081,67715.0,67714.0,0.21898706]
[1730043126392,0.37728081,67715.0,67714.0,0.23103934]
[1730043126603,0.22960381,67715.0,67714.0,0.23103934]
[1730043126815,0.37728081,67715.0,67714.0,0.23103934]
[1730043127891,0.22960381,67715.0,67714.0,0.23603934]
[1730043129227,0.37728081,67715.0,67714.0,0.23603934]
[1730043130530,0.37728081,67715.0,67714.0,0.22398706]
[1730043130772,0.37728081,67715.0,67714.0,0.23603155]
[1730043138803,0.22960381,67715.0,67714.0,0.23603155]
[1730043139064,0.37728081,67715.0,67714.0,0.23603155]
[1730043142034,0.22960381,67715.0,67714.0,0.23603155]
[1730043142287,0.0791,67715.0,67714.0,0.24103155]
[1730043142522,0.0791,67715.0,67714.0,0.37666606]
[1730043142734,0.0791,67715.0,67714.0,0.38865207]
[1730043150754,0.0791,67715.0,67714.0,0.39065207]
[1730043150968,0.0791,67715.0,67714.0,0.38865207]
[1730043153116,0.0791,67715.0,67714.0,0.39065207]
[1730043154402,0.0791,67715.0,67714.0,0.38865207]
[1730043155493,0.0791,67715.0,67714.0,0.36365207]
[1730043155704,0.0791,67715.0,67714.0,0.39324207]
[1730043163660,0.0791,67715.0,67714.0,0.39524207]
[1730043164309,0.0791,67715.0,67714.0,0.39324207]
[1730043164931,0.0791,67715.0,67714.0,0.39524207]
[1730043165138,0.0791,67715.0,67714.0,0.39324207]
[1730043167722,0.0791,67715.0,67714.0,0.39524207]
[1730043168567,0.0791,67715.0,67714.0,0.39324207]
[1730043168780,0.0791,67715.0,67714.0,0.39524207]
[1730043170539,0.0791,67715.0,67714.0,0.39324207]
[1730043171447,0.0791,67715.0,67714.0,0.39524207]
[1730043171884,0.0791,67715.0,67714.0,0.39324207]
[1730043172583,0.0791,67715.0,67714.0,0.41093241]
[1730043172792,0.0791,67715.0,67714.0,0.83090396]
[1730043173020,0.0791,67715.0,67714.0,0.85301498]
[1730043173237,0.0791,67715.0,67714.0,0.74985135]
[1730043174101,0.0791,67715.0,67714.0,0.74245987]
[1730043174568,0.0791,67715.0,67714.0,0.85298818]
[1730043175004,0.0791,67715.0,67714.0,0.84836797]
[1730043175219,0.0791,67715.0,67714.0,0.85287437]
[1730043176555,0.0791,67715.0,67714.0,0.74234622]
[1730043177256,0.0791,67715.0,67714.0,0.75949311]
[1730043177467,0.0791,67715.0,67714.0,0.74178418]
[1730043177950,0.0791,67715.0,67714.0,0.74176612]
[1730043178384,0.0791,67715.0,67714.0,0.83015342]
[1730043179639,0.0791,67715.0,67714.0,0.74176593]
[1730043179860,0.0791,67715.0,67714.0,0.86982591]
[1730043180750,0.0791,67715.0,67714.0,0.86981709]
[1730043181430,0.0791,67715.0,67714.0,0.75934999]
[1730043181655,0.0791,67715.0,67714.0,0.85212526]
[1730043182361,0.0791,67715.0,67714.0,0.86980285]
[1730043182571,0.0791,67715.0,67714.0,0.75934999]
[1730043182787,0.0791,67715.0,67714.0,0.8697917]
[1730043182995,0.0791,67715.0,67714.0,0.85211411]
[1730043183667,0.080744,67715.0,67714.0,0.85211411]
[1730043184351,0.080744,67715.0,67714.0,0.8521101]
[1730043184566,0.080744,67715.0,67714.0,0.74166839]
[1730043187604,0.080744,67715.0,67714.0,0.83000915]
[1730043188182,0.080744,67715.0,67714.0,0.57855645]
[1730043188402,0.080744,67715.0,67714.0,0.82995472]
[1730043188578,0.080744,67715.0,67714.0,0.82995515]
[1730043191362,0.080744,67715.0,67714.0,0.74161204]
[1730043191786,0.080744,67715.0,67714.0,0.82995515]
[1730043191991,0.080744,67715.0,67714.0,0.82995516]
[1730043193258,0.080744,67715.0,67714.0,0.84762666]
[1730043194548,0.080744,67715.0,67714.0,0.84761874]
[1730043196488,0.080744,67715.0,67714.0,0.82995499]
[1730043196713,0.080744,67715.0,67714.0,0.85427064]
[1730043197126,0.080744,67715.0,67714.0,0.86532325]
[1730043197782,0.080744,67715.0,67714.0,0.86532353]
[1730043199545,0.080744,67715.0,67714.0,0.7769831]
[1730043199997,0.080744,67715.0,67714.0,0.75929917]
[1730043200700,0.080744,67715.0,67714.0,0.75932139]
[1730043202081,0.080744,67715.0,67714.0,0.75932137]
[1730043202514,0.080744,67715.0,67714.0,0.75935096]
[1730043202805,0.080744,67715.0,67714.0,0.86979653]
[1730043206847,0.080744,67715.0,67714.0,0.75935096]
[1730043207070,0.080744,67715.0,67714.0,0.86983922]
[1730043207290,0.080744,67715.0,67714.0,0.86990535]
[1730043207506,0.080744,67715.0,67714.0,0.75941584]
[1730043208391,0.080744,67715.0,67714.0,0.72603744]
[1730043208595,0.080744,67715.0,67714.0,0.7594467]
[1730043209937,0.080744,67715.0,67714.0,0.8594467]
[1730043211404,0.080744,67715.0,67714.0,0.99203411]
[1730043211623,0.080744,67715.0,67714.0,0.8594467]
[1730043212052,0.080744,67715.0,67714.0,0.85943701]
[1730043212480,0.080744,67715.0,67714.0,0.99201655]
[1730043213627,0.001644,67718.0,67717.0,0.465163]
[1730043213815,0.001644,67718.0,67717.0,0.81221105]
[1730043214059,0.001644,67718.0,67717.0,0.82393293]
[1730043216039,0.001644,67718.0,67717.0,0.82390041]
[1730043219755,0.001644,67718.0,67717.0,0.79514268]
[1730043219985,0.001644,67718.0,67717.0,0.82388813]
[1730043221492,0.001644,67718.0,67717.0,0.82399851]
[1730043224047,0.001644,67718.0,67717.0,0.80168999]
[1730043224286,0.001644,67718.0,67717.0,0.82399262]
[1730043226159,0.001644,67718.0,67717.0,0.82396159]
[1730043227184,0.001644,67718.0,67717.0,0.82395803]
[1730043228542,0.001644,67723.0,67722.0,0.04159]
[1730043228762,0.001644,67723.0,67722.0,0.38582134]
[1730043228974,0.001644,67723.0,67722.0,0.39758046]
[1730043231619,0.001644,67723.0,67722.0,0.36884439]
[1730043231832,0.001644,67723.0,67722.0,0.39758121]
[1730043233673,0.001644,67723.0,67722.0,0.41479376]
[1730043235412,0.001644,67723.0,67722.0,0.41479374]
[1730043235639,0.001644,67723.0,67722.0,0.41014794]
[1730043235845,0.001644,67723.0,67722.0,0.39708635]
[1730043236071,0.001644,67723.0,67722.0,0.41477644]
[1730043236948,0.001644,67723.0,67722.0,0.39756389]
[1730043239500,0.001644,67723.0,67722.0,0.39556389]
[1730043239738,0.001644,67723.0,67722.0,0.39756389]
[1730043240145,0.001644,67723.0,67722.0,0.39556639]
[1730043240370,0.001644,67723.0,67722.0,0.36597639]
[1730043240779,0.001644,67723.0,67722.0,0.3482863]
[1730043242112,0.001644,67723.0,67722.0,0.34829399]
[1730043242726,0.001644,67723.0,67722.0,0.18510404]
[1730043243733,0.001644,67723.0,67722.0,0.21468404]
[1730043245996,0.001644,67723.0,67722.0,0.21006511]
[1730043246220,0.001644,67723.0,67722.0,0.20362044]
[1730043246369,0.001644,67723.0,67722.0,0.19900112]
[1730043246573,0.001644,67723.0,67722.0,0.21468208]
[1730043247218,0.001644,67723.0,67722.0,0.18510208]
[1730043250323,0.001644,67723.0,67722.0,0.17404042]
[1730043250550,0.001644,67723.0,67722.0,0.18510133]
[1730043250936,0.001644,67723.0,67722.0,0.20722312]
[1730043252462,0.001644,67723.0,67722.0,0.45902251]
[1730043253000,0.001644,67723.0,67722.0,0.37053844]
[1730043253685,0.001644,67723.0,67722.0,0.45902251]
[1730043254317,0.001644,67723.0,67722.0,0.45902253]
[1730043255006,0.001644,67723.0,67722.0,0.37053846]
[1730043255661,0.001644,67723.0,67722.0,0.45902253]
[1730043258791,0.001644,67723.0,67722.0,0.44796167]
[1730043259005,0.001644,67723.0,67722.0,0.45902244]
[1730043259644,0.001644,67723.0,67722.0,0.37053837]
[1730043260274,0.001644,67723.0,67722.0,0.34841654]
[1730043260901,0.001644,67723.0,67722.0,0.43690061]
[1730043261953,0.001644,67723.0,67722.0,0.34841654]
[1730043262174,0.001644,67723.0,67722.0,0.47671881]
[1730043262390,0.001644,67723.0,67722.0,0.47671832]
[1730043262609,0.000644,67723.0,67722.0,0.47671832]
[1730043264182,0.000644,67723.0,67722.0,0.47671999]
[1730043264614,0.000644,67723.0,67722.0,0.57631999]
[1730043265267,0.000644,67723.0,67722.0,0.65481999]
[1730043265496,0.000644,67723.0,67722.0,0.57379423]
[1730043266914,0.000644,67723.0,67722.0,0.59125402]
[1730043273487,0.000644,67723.0,67722.0,0.4279377]
[1730043273720,0.000644,67723.0,67722.0,0.59114494]
[1730043273984,0.000644,67723.0,67722.0,0.59112796]
[1730043277505,0.000644,67723.0,67722.0,0.58007352]
[1730043277752,0.000644,67723.0,67722.0,0.59112651]
[1730043280145,0.000644,67723.0,67722.0,0.58650759]
[1730043280429,0.000644,67723.0,67722.0,0.55776815]
[1730043280647,0.000644,67723.0,67722.0,0.5911214]
[1730043281360,0.000644,67723.0,67722.0,0.57545087]
[1730043281601,0.000644,67723.0,67722.0,0.59112103]
[1730043287409,0.000644,67723.0,67722.0,0.59112104]
[1730043287857,0.000644,67723.0,67722.0,0.59108327]
[1730043288372,0.000644,67723.0,67722.0,0.59190527]
[1730043288847,0.000644,67723.0,67722.0,0.59190529]
[1730043289993,0.000644,67723.0,67722.0,0.59191507]
[1730043293407,0.000644,67723.0,67722.0,0.59191506]
[1730043294251,0.000644,67723.0,67722.0,0.58729621]
[1730043294477,0.000644,67723.0,67722.0,0.59191504]
[1730043297214,0.000644,67723.0,67722.0,0.59189791]
[1730043297437,0.000644,67723.0,67722.0,0.59191292]
[1730043299850,0.000644,67723.0,67722.0,0.57445313]
[1730043301125,0.000644,67723.0,67722.0,0.57645313]
[1730043303574,0.000644,67723.0,67722.0,0.41330146]
[1730043303995,0.000644,67723.0,67722.0,0.41130146]
[1730043307237,0.000644,67723.0,67722.0,0.42899782]
[1730043307474,0.000644,67723.0,67722.0,0.41329966]
[1730043307695,0.000644,67723.0,67722.0,0.41129966]
[1730043309524,0.000644,67723.0,67722.0,0.82507612]
[1730043309748,0.000644,67723.0,67722.0,1.05365784]
[1730043309977,0.001646,67726.0,67725.0,0.01]
[1730043310241,0.001646,67726.0,67725.0,0.72751977]
[1730043310903,0.001646,67726.0,67725.0,0.71645233]
[1730043311132,0.001646,67726.0,67725.0,0.72750891]
[1730043311808,0.001646,67726.0,67725.0,0.72749588]
[1730043314430,0.001646,67726.0,67725.0,0.6941302]
[1730043314641,0.001646,67726.0,67725.0,0.82749354]
[1730043315369,0.001646,67726.0,67725.0,0.82949354]
[1730043316005,0.001646,67726.0,67725.0,0.82749354]
[1730043316219,0.001646,67726.0,67725.0,0.82949354]
[1730043316435,0.001646,67726.0,67725.0,0.82949351]